bitfinex-derivatives/quotes_ETHF0:USTF0_20240822
["timestamp","ask_amount","ask_price","bid_price","bid_amount"]
[1724335534381,62.14415311,2616.8,2616.6,0.38207]
[1724335534579,62.52620311,2616.8,2616.4,0.752]
[1724335534783,0.38206,2616.7,2616.4,0.752]
[1724335534970,62.14415311,2616.8,2616.6,0.38207]
[1724335535492,62.14415311,2616.8,2616.3,3.58991]
[1724335535493,0.38208,2616.6,2616.3,3.58991]
[1724335535671,0.7271,2616.7,2616.6,0.38207]
[1724335535880,62.14415311,2616.8,2616.7,0.38206]
[1724335536075,62.14415311,2616.8,2616.6,3.2078]
[1724335536278,0.38206,2616.7,2616.6,3.2078]
[1724335536586,62.14415311,2616.8,2616.6,3.58987]
[1724335536780,62.52620311,2616.8,2616.6,3.2078]
[1724335536985,0.38206,2616.7,2616.6,3.2078]
[1724335537283,62.14415311,2616.8,2616.6,3.2078]
[1724335537484,0.38206,2616.7,2616.6,3.2078]
[1724335537880,4.20367,2616.7,2616.4,0.3821]
[1724335538179,62.14415311,2616.8,2616.0,3.5744382]
[1724335538180,0.38207,2616.6,2616.3,0.38211]
[1724335538884,0.38207,2616.7,2616.4,0.3821]
[1724335539087,0.38209,2616.6,2616.3,0.38211]
[1724335539581,0.38209,2616.5,2616.3,0.38211]
[1724335539879,62.14415311,2616.8,2616.0,3.2113382]
[1724335539880,0.95519,2616.6,2616.0,3.2113382]
[1724335540085,0.38215,2616.1,2616.0,0.0035382]
[1724335540471,0.95533,2616.3,2616.0,0.0035382]
[1724335540472,0.38212,2616.3,2616.0,0.3856982]
[1724335540890,0.38212,2616.3,2616.0,0.0035382]
[1724335541080,0.74981,2616.4,2616.1,0.38214]
[1724335541383,0.74981,2616.4,2616.0,0.0035382]
[1724335541384,0.3677,2616.4,2616.2,0.38213]
[1724335541680,0.3759,2616.5,2616.3,0.38212]
[1724335541987,0.38208,2616.6,2616.3,0.38212]
[1724335542282,65.71965311,2616.8,2616.4,3.2078]
[1724335542475,62.51185311,2616.8,2616.4,3.2078]
[1724335542791,0.38207,2616.7,2616.4,0.3821]
[1724335542978,62.51185311,2616.8,2616.1,3.9447]
[1724335543285,62.89390311,2616.8,2616.5,0.38208]
[1724335543475,0.38206,2616.7,2616.4,0.3821]
[1724335543677,62.51185311,2616.8,2616.1,3.9447]
[1724335543881,0.3821,2616.5,2616.3,3.2078]
[1724335544190,0.3821,2616.5,2616.2,0.38213]
[1724335544380,0.3858,2616.7,2616.1,0.7369]
[1724335544885,0.3821,2616.4,2616.2,0.38213]
[1724335545091,0.3858,2616.7,2616.2,0.38213]
[1724335545287,0.38211,2616.4,2616.1,1.11904]
[1724335545590,0.3821,2616.5,2616.2,0.38213]
[1724335545774,0.3821,2616.5,2616.2,0.38212]
[1724335545775,0.38209,2616.5,2616.2,0.38212]
[1724335546381,0.3858,2616.7,2616.1,0.7369]
[1724335546586,1.34098,2616.7,2616.2,3.2078]
[1724335546892,0.38213,2616.3,2616.0,0.3856882]
[1724335547089,0.38215,2616.1,2616.0,0.0035382]
[1724335548487,4.20455,2616.1,2616.0,0.0035382]
[1724335548692,5.15992,2616.1,2616.0,0.0035382]
[1724335548983,4.20455,2616.1,2616.0,0.0035382]
[1724335550388,0.38215,2616.1,2616.0,0.0035382]
[1724335550793,4.20455,2616.1,2616.0,0.0035382]
[1724335551287,3.8224,2616.0,2614.8,3.2078]
[1724335551493,0.95559,2615.5,2614.8,3.59013]
[1724335551681,0.38227,2615.3,2614.8,3.2078]
[1724335551882,0.38227,2615.3,2615.0,0.3823]
[1724335552293,0.38228,2615.2,2615.0,0.00298922]
[1724335552592,0.38227,2615.3,2615.0,0.00298922]
[1724335552778,0.38228,2615.2,2615.0,0.00298922]
[1724335552984,0.75663998,2615.4,2615.0,0.00298922]
[1724335552985,0.38227,2615.3,2615.0,0.00298922]
[1724335553192,0.38227,2615.3,2615.0,0.38529922]
[1724335553382,0.38229,2615.2,2615.0,0.00298922]
[1724335553582,0.38227,2615.3,2615.0,0.38529922]
[1724335553778,0.38229,2615.2,2615.0,0.00298922]
[1724335553985,1.13889998,2615.4,2615.1,0.38229]
[1724335554183,0.38228,2615.2,2615.0,0.00298922]
[1724335554383,0.38229,2615.1,2615.0,0.00298922]
[1724335554784,0.38229,2615.2,2615.0,0.00298922]
[1724335555188,0.38229,2615.1,2615.0,0.00298922]
[1724335555593,0.38229,2615.2,2615.0,0.00298922]
[1724335555792,0.38227,2615.3,2615.0,0.38529922]
[1724335555995,1.11753998,2615.4,2615.0,0.38529922]
[1724335556295,0.38228,2615.2,2615.0,0.00298922]
[1724335557098,0.38229,2615.1,2615.0,0.00298922]
[1724335557292,1.11753998,2615.4,2615.0,0.00298922]
[1724335557487,0.38229,2615.1,2615.0,0.00298922]
[1724335557697,0.38229,2615.2,2615.0,0.00298922]
[1724335557892,0.38227,2615.3,2615.0,0.38529922]
[1724335558198,0.38228,2615.2,2615.0,0.00298922]
[1724335558387,1.11753998,2615.4,2615.0,0.00298922]
[1724335558588,0.00573998,2615.4,2615.3,0.38226]
[1724335558789,0.00573998,2615.4,2615.3,4.20546]
[1724335558985,0.00573998,2615.4,2615.3,3.8232]
[1724335559190,0.00573998,2615.4,2615.1,3.2078]
[1724335559191,0.38228,2615.2,2615.1,3.2078]
[1724335559390,0.3702,2615.3,2615.2,0.38228]
[1724335559686,0.00573998,2615.4,2615.2,0.38227]
[1724335559893,0.00573998,2615.4,2615.0,0.00298922]
[1724335560096,0.38229,2615.1,2615.0,0.00298922]
[1724335560289,0.3561,2615.3,2615.0,0.00298922]
[1724335560493,0.73837,2615.3,2615.1,0.38228]
[1724335560792,0.38228,2615.2,2615.0,0.38528922]
[1724335560989,0.38229,2615.1,2615.0,0.00298922]
[1724335561396,0.38229,2615.1,2614.9,0.00573998]
[1724335561397,1.33808,2615.0,2614.9,0.00573998]
[1724335561595,5.16208,2615.0,2614.9,0.00573998]
[1724335561992,4.20631,2615.0,2614.9,0.00573998]
[1724335562487,1.7025,2615.2,2614.9,0.01063993]
[1724335562488,0.38229,2615.1,2614.9,0.01063993]
[1724335562698,0.38229,2615.1,2614.9,0.39295993]
[1724335563298,0.38229,2615.1,2614.9,0.01063993]
[1724335563503,0.38229,2615.1,2614.9,3.60075993]
[1724335563805,0.38227,2615.3,2615.1,0.38229]
[1724335564102,0.38227,2615.3,2614.9,3.21843993]
[1724335564103,0.00573998,2615.4,2614.9,3.21843993]
[1724335564303,0.38798998,2615.4,2615.0,0.3679]
[1724335564503,0.00573998,2615.4,2615.3,0.38226]
[1724335564890,0.00573998,2615.4,2615.3,4.20546]
[1724335566106,0.3617,2616.1,2615.3,8.8232]
[1724335566300,0.38214,2616.2,2615.8,0.38218]
[1724335566494,4.089,2616.4,2616.1,0.38214]
[1724335566695,65.73400311,2616.8,2616.1,3.2078]
[1724335566899,62.14415311,2616.8,2616.0,3.2078]
[1724335567100,0.00573998,2616.7,2616.1,0.38214]
[1724335567301,0.00573998,2616.7,2616.0,3.2078]
[1724335567507,0.00573998,2616.7,2616.3,0.3821]
[1724335567694,0.00573998,2616.7,2616.3,3.2078]
[1724335567898,0.00573998,2616.7,2616.2,0.00573998]
[1724335568102,0.00573998,2616.7,2616.3,3.2078]
[1724335568503,0.00573998,2616.7,2616.2,0.00573998]
[1724335568504,0.00573998,2616.7,2616.6,3.58987]
[1724335568906,0.00573998,2616.7,2616.6,12.41147]
[1724335569098,62.14415311,2616.8,2616.7,0.38206]
[1724335569295,62.14415311,2616.8,2616.6,3.2078]
[1724335569607,62.14415311,2616.8,2616.3,3.2078]
[1724335569808,62.14415311,2616.8,2616.7,3.2078]
[1724335570304,62.14415311,2616.8,2616.7,3.8216]
[1724335570701,62.14415311,2616.8,2616.4,6.608]
[1724335570903,62.14415311,2616.8,2616.2,3.21353998]
[1724335571105,0.3763,2616.7,2616.2,0.00573998]
[1724335571820,0.38212,2616.3,2616.2,0.00573998]
[1724335572110,4.20452,2616.3,2615.5,3.2078]
[1724335572309,0.3506,2616.2,2615.4,0.3615]
[1724335572604,0.95545,2615.9,2615.2,3.2078]
[1724335572811,0.3822,2615.7,2615.2,3.2078]
[1724335573001,0.38222,2615.6,2615.2,3.21353998]
[1724335573206,0.3787,2615.8,2615.2,3.21353998]
[1724335573207,0.38224,2615.5,2615.2,3.21353998]
[1724335573396,0.38223,2615.6,2615.2,3.21353998]
[1724335573600,0.00573998,2615.7,2615.2,3.21353998]
[1724335573601,3.21353998,2615.7,2615.2,3.21353998]
[1724335573798,0.00573998,2615.7,2615.2,3.21353998]
[1724335574207,0.38226,2615.3,2615.2,0.00573998]
[1724335574705,4.20626,2615.3,2615.2,0.00573998]
[1724335574907,9.20626,2615.3,2615.2,0.00573998]
[1724335575112,0.38231,2615.0,2614.9,0.00489995]
[1724335575909,4.20631,2615.0,2614.9,0.00489995]
[1724335576606,0.38234,2614.8,2614.7,0.00573998]
[1724335577117,0.3577,2614.9,2614.7,0.00573998]
[1724335577501,4.1817,2614.9,2614.7,0.00573998]
[1724335577703,0.00421727,2614.9,2614.7,0.00954429]
[1724335578111,0.00421727,2614.9,2614.7,0.39189429]
[1724335578720,0.00421727,2614.9,2614.7,0.00954429]
[1724335579710,0.38234,2614.8,2614.7,0.00954429]
[1724335579921,0.38234,2614.8,2613.9,3.2078]
[1724335579922,0.38242,2614.3,2613.9,3.2078]
[1724335580412,0.3588,2614.7,2613.5,0.375]
[1724335580413,4.16374,2614.6,2613.5,0.375]
[1724335580613,0.38243,2614.2,2613.5,0.375]
[1724335580807,3.2078,2614.6,2613.7,3.2078]
[1724335581002,3.2078,2614.6,2613.9,0.38246]
[1724335581213,0.38244,2614.1,2613.9,0.00573998]
[1724335581413,0.38243,2614.2,2613.9,0.00573998]
[1724335581617,0.38242,2614.3,2613.9,0.00573998]
[1724335581812,0.00573998,2614.4,2613.9,0.00573998]
[1724335582016,0.38813998,2614.4,2613.9,0.38819998]
[1724335582212,0.38813998,2614.4,2613.9,0.00573998]
[1724335582523,0.38813998,2614.4,2613.9,0.38819998]
[1724335582709,0.38813998,2614.4,2614.1,3.2078]
[1724335582710,0.00573998,2614.4,2614.1,3.2078]
[1724335583020,0.00573998,2614.4,2614.3,0.38241]
[1724335583227,0.00573998,2614.4,2614.2,0.38242]
[1724335583518,0.00573998,2614.4,2613.9,0.00573998]
[1724335583519,0.38812998,2614.4,2614.3,3.2078]
[1724335583724,0.38243,2614.2,2613.9,0.00573998]
[1724335583910,0.38245,2614.1,2613.9,0.00573998]
[1724335584114,0.38243,2614.2,2613.9,0.00573998]
[1724335584319,0.00573998,2614.4,2613.9,0.00573998]
[1724335584520,0.38243,2614.2,2614.0,3.2078]
[1724335584717,0.38243,2614.2,2613.9,0.00573998]
[1724335584916,0.38244,2614.1,2613.9,0.00573998]
[1724335585315,0.38243,2614.2,2613.9,0.00573998]
[1724335585611,0.38242,2614.2,2613.9,0.00573998]
[1724335585815,0.38244,2614.1,2614.0,3.2078]
[1724335586726,0.38245,2614.0,2613.9,0.00573998]
[1724335586922,11.77219,2614.0,2613.9,0.00573998]
[1724335587118,1.33869,2613.8,2613.7,0.00371214]
[1724335587423,1.33869,2613.8,2612.6,0.3727]
[1724335587424,0.95625,2613.7,2612.6,0.3727]
[1724335587617,0.38263,2612.9,2612.5,0.3595]
[1724335587825,0.38262,2612.9,2612.4,3.59049]
[1724335588040,0.38263,2612.8,2612.4,3.2078]
[1724335588322,0.38263,2612.8,2612.4,0.00494003]
[1724335588323,0.38268,2612.5,2612.4,0.00494003]
[1724335588623,4.21068,2612.5,2612.4,1e-08]
[1724335588824,3.828,2612.5,2612.4,1e-08]
[1724335589024,8.828,2612.5,2612.4,1e-08]
[1724335589216,3.2078,2612.6,2612.4,1e-08]
[1724335589424,0.00422373,2612.8,2612.4,1e-08]
[1724335590029,0.38265,2612.7,2612.4,1e-08]
[1724335590321,0.00422373,2612.8,2612.4,1e-08]
[1724335590722,3.828,2612.7,2612.4,1e-08]
[1724335590921,0.38267,2612.5,2612.4,1e-08]
[1724335591117,6.33936,2612.5,2612.4,1e-08]
[1724335591323,10.16736,2612.5,2612.4,1e-08]
[1724335591514,10.54676,2612.5,2612.4,1e-08]
[1724335592724,11.50345,2612.5,2612.4,1e-08]
[1724335593725,0.95714,2611.3,2609.9,3.2078]
[1724335593921,0.00573998,2610.9,2610.1,0.38302]
[1724335594121,0.38293,2610.8,2610.0,0.38303]
[1724335594321,0.00573998,2610.9,2610.3,0.38299]
[1724335594629,0.0095557,2610.9,2610.5,0.38296]
[1724335594826,0.0095557,2610.9,2610.3,0.00335821]
[1724335595027,0.0095557,2610.9,2610.8,0.38292]
[1724335595227,0.0095557,2610.9,2610.7,3.59073]
[1724335595424,0.0095557,2610.9,2610.8,4.21332]
[1724335595731,5.7e-06,2610.9,2610.8,4.21332]
[1724335596033,5.7e-06,2610.9,2610.8,9.21332]
[1724335597237,7.2968,2612.1,2611.5,0.38282]
[1724335597423,7.2968,2612.1,2611.2,3.2078]
[1724335597620,7.2968,2612.1,2611.1,3.2078]
[1724335597930,0.00573998,2611.6,2611.1,3.2078]
[1724335598128,0.00573998,2611.6,2611.5,0.38282]
[1724335598328,0.0106858,2611.6,2611.5,4.21162]
[1724335598525,0.0106858,2611.6,2611.5,9.96632]
[1724335599327,4.089,2612.5,2611.9,0.38275]
[1724335599636,4.089,2612.5,2611.6,0.3828]
[1724335599931,3.2078,2612.3,2611.5,0.7547]
[1724335600129,0.38274,2612.1,2611.5,0.7547]
[1724335600331,0.38275,2612.0,2611.5,0.7547]
[1724335600736,0.00430896,2612.1,2611.5,0.7547]
[1724335600934,0.39278894,2612.1,2611.5,1.14325998]
[1724335601135,0.01004894,2612.1,2611.5,0.76043998]
[1724335601535,0.38278,2611.8,2611.5,0.76043998]
[1724335601837,0.3828,2611.6,2611.5,0.00573998]
[1724335602532,0.3497,2611.9,2611.5,0.00573998]
[1724335602533,0.73247,2611.9,2611.5,3.83453998]
[1724335602727,0.3497,2611.9,2611.5,0.00573998]
[1724335603061,0.38278,2611.8,2611.5,0.00573998]
[1724335603629,0.38276,2611.9,2611.5,0.38854998]
[1724335603831,0.38275,2612.0,2611.5,0.38854998]
[1724335604129,0.39278894,2612.1,2611.5,0.00573998]
[1724335604327,0.01004894,2612.1,2611.6,0.38279]
[1724335604636,3.2078,2611.8,2611.5,0.35943998]
[1724335604936,0.3828,2611.6,2611.5,0.00573998]
[1724335605938,0.38277,2611.9,2611.5,0.00573998]
[1724335606125,0.38277,2611.9,2611.5,0.38854998]
[1724335606536,0.38278,2611.8,2611.5,0.00573998]
[1724335606731,3.21784894,2612.1,2611.5,0.00573998]
[1724335606926,0.38278,2611.8,2611.5,0.00573998]
[1724335607133,3.2078,2611.8,2611.5,0.00573998]
[1724335607338,3.2078,2611.8,2611.5,0.38854998]
[1724335607640,3.2078,2611.8,2611.5,0.00573998]
[1724335607837,0.01004894,2612.1,2611.5,3.83453998]
[1724335607838,0.3828,2611.7,2611.5,3.83453998]
[1724335608032,0.3828,2611.6,2611.5,0.00573998]
[1724335609143,0.3759,2611.8,2611.5,0.00573998]
[1724335609338,0.38279,2611.7,2611.5,0.00573998]
[1724335609529,0.3759,2611.8,2611.5,0.00573998]
[1724335610044,0.38279,2611.7,2611.5,0.00573998]
[1724335610239,0.3828,2611.6,2611.5,0.00573998]
[1724335611434,1.33982,2611.6,2611.5,0.00573998]
[1724335611832,0.3828,2611.6,2611.5,0.00573998]
[1724335612031,0.38279,2611.7,2611.5,0.00573998]
[1724335612240,0.3828,2611.6,2611.5,0.00573998]
[1724335612940,1.33982,2611.6,2611.5,0.00573998]
[1724335613143,1.70292,2611.6,2611.5,0.00573998]
[1724335614040,0.7459,2611.6,2611.5,0.00573998]
[1724335614338,4.54065,2611.8,2611.5,0.00573998]
[1724335614339,0.3759,2611.8,2611.5,0.00573998]
[1724335614840,0.38279,2611.8,2611.5,0.38854998]
[1724335615031,0.3631,2612.0,2611.5,0.00573998]
[1724335615239,0.3631,2612.0,2611.7,0.38278]
[1724335615435,0.3631,2612.0,2611.5,0.00573998]
[1724335615436,0.3631,2612.0,2611.6,0.3828]
[1724335615642,0.74585,2612.0,2611.7,0.38279]
[1724335615836,0.38278,2611.8,2611.5,0.38854998]
[1724335616040,0.38277,2611.8,2611.5,0.38854998]
[1724335616244,0.3631,2612.0,2611.5,0.00573998]
[1724335616643,4.09904894,2612.1,2611.9,0.38276]
[1724335616847,4.09904894,2612.1,2611.7,0.38278]
[1724335616848,0.38275,2612.0,2611.7,0.38278]
[1724335617044,4.09904894,2612.1,2611.7,0.38278]
[1724335617349,0.38275,2612.0,2611.7,0.38278]
[1724335617738,0.38275,2612.0,2611.6,0.73919]
[1724335618055,0.38275,2612.0,2611.7,0.38279]
[1724335618647,0.01004894,2612.1,2611.6,0.3564]
[1724335619144,0.01004894,2612.1,2611.9,0.38276]
[1724335619645,0.01004894,2612.1,2611.8,3.2078]
[1724335619948,0.01004894,2612.1,2612.0,0.38275]
[1724335620444,0.01004894,2612.1,2611.6,3.5642]
[1724335620837,0.38275,2612.0,2611.7,0.38278]
[1724335621041,0.01004894,2612.1,2611.6,3.5642]
[1724335621436,0.01004894,2612.1,2611.6,0.3564]
[1724335621643,0.3828,2611.6,2611.5,0.37833998]
[1724335622141,0.3671,2612.0,2611.5,0.37833998]
[1724335622142,0.3671,2612.0,2611.5,4.20713998]
[1724335622347,0.3671,2612.0,2611.5,0.76114998]
[1724335622348,0.38278,2611.8,2611.5,0.76114998]
[1724335622646,0.3828,2611.6,2611.5,0.37833998]
[1724335622842,0.3828,2611.6,2611.5,0.00573998]
[1724335623052,0.3828,2611.7,2611.5,3.83453998]
[1724335623348,0.3828,2611.6,2611.5,0.00573998]
[1724335623842,4.53178,2612.0,2611.5,0.00573998]
[1724335624152,0.3828,2611.6,2611.5,0.00573998]
[1724335625952,3.5906,2611.7,2611.5,0.00573998]
[1724335626147,0.3828,2611.6,2611.5,0.00573998]
[1724335629145,3.59059,2611.7,2611.5,0.00573998]
[1724335629342,0.38278,2611.8,2611.5,0.00573998]
[1724335629751,3.5749,2612.0,2611.5,0.00573998]
[1724335630054,0.3828,2611.6,2611.5,0.00573998]
[1724335630240,0.3828,2611.7,2611.5,0.00573998]
[1724335630446,4.53178,2612.0,2611.5,0.00573998]
[1724335630447,0.3828,2611.6,2611.5,0.00573998]
[1724335630645,0.38278,2611.8,2611.5,0.00573998]
[1724335630844,0.3828,2611.6,2611.5,0.00573998]
[1724335631444,11.78762,2611.6,2611.5,0.00573998]
[1724335631645,15.4478,2611.6,2610.4,3.9074]
[1724335631946,0.9572,2611.1,2610.4,3.9074]
[1724335632153,0.38297,2610.5,2610.4,3.9074]
[1724335632351,0.38296,2610.6,2610.4,3.9074]
[1724335632551,0.38297,2610.5,2610.4,0.6996]
[1724335632760,0.38297,2610.5,2610.4,0.3489]
[1724335632945,0.38297,2610.5,2610.4,4.1793]
[1724335633349,0.38298,2610.4,2610.3,0.00335821]
[1724335633858,0.38298,2610.4,2610.3,3.83455821]
[1724335634051,10.17164,2610.4,2610.2,0.00573998]
[1724335634253,10.17164,2610.4,2609.5,3.2078]
[1724335634254,4.1896,2610.3,2609.5,3.2078]
[1724335634553,0.3584,2610.3,2609.5,3.2078]
[1724335634749,10.708,2610.5,2610.1,0.38301]
[1724335634750,4.089,2610.5,2610.1,0.38301]
[1724335634945,1.98408819,2610.8,2609.8,3.2078]
[1724335635150,0.38865998,2610.8,2610.1,3.2078]
[1724335635353,0.00573998,2610.8,2610.4,3.2078]
[1724335635556,0.00573998,2610.8,2610.7,0.38294]
[1724335635749,0.00573998,2610.8,2610.7,3.8304]
[1724335636264,0.00573998,2610.8,2610.7,4.21334]
[1724335636556,0.00573998,2610.8,2610.2,4.186]
[1724335636746,0.38294,2610.7,2610.2,4.56901]
[1724335637147,0.75746998,2610.8,2610.3,0.38299]
[1724335637349,0.38295,2610.6,2610.2,4.569]
[1724335637555,0.37453998,2610.8,2610.2,4.569]
[1724335637556,0.38295,2610.7,2610.2,4.569]
[1724335637759,0.37453998,2610.8,2610.2,4.569]
[1724335637945,0.37453998,2610.8,2610.2,4.186]
[1724335638147,3.2078,2610.7,2610.2,4.186]
[1724335638448,0.38294,2610.7,2610.2,4.186]
[1724335638958,0.37453998,2610.8,2610.4,0.38297]
[1724335639347,0.00573998,2610.8,2610.4,3.2078]
[1724335639753,0.38866998,2610.8,2610.3,0.38299]
[1724335639958,0.38866998,2610.8,2610.3,0.38298]
[1724335640257,0.38294,2610.7,2610.3,0.38298]
[1724335640450,0.38866998,2610.8,2610.3,0.38298]
[1724335640651,0.38294,2610.7,2610.3,0.38299]
[1724335640859,0.38295,2610.6,2610.2,7.7768]
[1724335641159,0.00573998,2610.8,2610.7,0.38294]
[1724335641560,0.00573998,2610.8,2610.7,10.17069]
[1724335641861,1.98265717,2612.1,2611.1,0.95719]
[1724335642160,0.00430896,2612.1,2611.7,0.38278]
[1724335642358,0.00430896,2612.1,2611.7,0.00398262]
[1724335642359,0.38703896,2612.1,2611.7,0.00398262]
[1724335642558,0.38704896,2612.1,2611.7,0.00398262]
[1724335642755,0.00430896,2612.1,2611.7,0.00398262]
[1724335643165,0.00430896,2612.1,2611.8,0.38277]
[1724335643457,0.00430896,2612.1,2611.7,0.00398262]
[1724335643654,0.00430896,2612.1,2611.7,0.38676262]
[1724335643853,0.38704896,2612.1,2611.7,0.00398262]
[1724335644046,0.00430896,2612.1,2611.7,0.00398262]
[1724335644452,0.00430896,2612.1,2611.8,0.38277]
[1724335644656,0.38277,2611.9,2611.7,0.00398262]
[1724335644858,0.38277,2611.8,2611.7,0.00398262]
[1724335645260,0.38277,2611.9,2611.7,0.00398262]
[1724335645450,0.38277,2611.8,2611.7,0.00398262]
[1724335645859,1.98265717,2612.1,2611.7,0.00398262]
[1724335646046,0.00430896,2612.1,2611.7,0.00398262]
[1724335646249,0.38276,2611.9,2611.7,0.00398262]
[1724335646762,1.98265717,2612.1,2611.7,0.00398262]
[1724335646967,0.38275,2612.0,2611.7,0.00398262]
[1724335647261,0.00430896,2612.1,2611.7,0.00398262]
[1724335648161,0.38277,2611.8,2611.7,0.00398262]
[1724335648351,1.33971,2611.8,2611.7,0.00398262]
[1724335648545,1.33971,2611.8,2610.6,4.5423]
[1724335648546,3.8288,2611.7,2610.6,4.5423]
[1724335648750,3.8288,2611.7,2610.6,0.3563]
[1724335648751,0.38284,2611.4,2610.6,0.3563]
[1724335648956,9.64461899,2611.7,2610.8,3.2078]
[1724335649164,0.38284,2611.4,2611.0,0.38288]
[1724335649352,0.38284,2611.4,2610.7,0.3746]
[1724335649353,0.38286,2611.3,2610.7,0.3746]
[1724335649657,0.38287,2611.2,2610.7,3.96956482]
[1724335649852,0.38284,2611.4,2610.9,0.3829]
[1724335650054,0.38283,2611.5,2611.0,0.38289]
[1724335650255,10.00241899,2611.7,2610.7,3.58663482]
[1724335650453,3.2078,2611.3,2610.7,0.37883482]
[1724335650963,3.2078,2611.3,2610.9,0.38289]
[1724335651670,3.2078,2611.3,2610.7,0.37883482]
[1724335651858,3.2078,2611.3,2611.1,0.38287]
[1724335652051,3.2078,2611.3,2611.0,0.38289]
[1724335652257,3.2078,2611.3,2611.1,0.38287]
[1724335652458,3.2078,2611.3,2611.2,0.38286]
[1724335652662,2.36331899,2611.7,2610.9,3.2078]
[1724335652862,0.38283,2611.4,2610.9,3.2078]
[1724335653068,0.38285,2611.3,2610.7,0.37883482]
[1724335653368,0.38286,2611.2,2610.8,0.38292]
[1724335653571,0.38286,2611.2,2610.8,0.38291]
[1724335653759,0.38285,2611.3,2610.9,0.3829]
[1724335653958,0.38285,2611.3,2610.7,0.37883482]
[1724335653959,0.38284,2611.4,2611.0,0.38289]
[1724335654264,0.38285,2611.3,2610.9,0.3829]
[1724335654465,2.93749899,2611.7,2611.1,0.38288]
[1724335654466,0.38283,2611.5,2611.1,0.38288]
[1724335654666,2.93749899,2611.7,2611.2,0.38285]
[1724335654667,1.98051899,2611.7,2611.2,0.38285]
[1724335654962,0.38282,2611.5,2610.9,3.2078]
[1724335655153,0.38283,2611.4,2611.1,0.38287]
[1724335655356,0.38283,2611.4,2610.9,3.2078]
[1724335655559,0.38284,2611.4,2611.0,0.38289]
[1724335655758,0.38281,2611.6,2611.2,0.38286]
[1724335655960,0.38281,2611.6,2610.9,3.2078]
[1724335656165,5.57109899,2611.8,2610.9,3.2078]
[1724335656369,3.2078,2611.8,2611.5,0.38281]
[1724335656553,3.2078,2611.8,2611.3,3.2078]
[1724335656756,3.2078,2611.8,2611.4,0.7354]
[1724335657165,3.2078,2611.8,2611.5,0.38281]
[1724335657358,3.2078,2611.8,2611.4,0.7354]
[1724335657561,3.2078,2611.8,2611.7,0.38279]
[1724335657765,4.089,2612.0,2611.4,0.7354]
[1724335657969,0.76234896,2612.1,2611.4,0.7354]
[1724335657970,0.76234896,2612.1,2611.7,0.38278]
[1724335658168,0.37960896,2612.1,2611.8,0.38277]
[1724335658360,0.37960896,2612.1,2611.9,0.38276]
[1724335658560,0.00430896,2612.1,2611.8,0.38277]
[1724335658755,0.00430896,2612.1,2611.5,3.2078]
[1724335658756,0.00430896,2612.1,2611.7,0.38278]
[1724335658958,0.00430896,2612.1,2611.5,3.2078]
[1724335659567,0.00430896,2612.1,2611.8,0.38277]
[1724335659766,0.00430896,2612.1,2611.7,0.38278]
[1724335660164,0.00430896,2612.1,2612.0,0.38275]
[1724335660666,5.6754503,2612.9,2612.2,0.38272]
[1724335660667,0.38265,2612.7,2612.2,0.38272]
[1724335660862,3.2078,2612.7,2612.1,0.7202]
[1724335661077,2.69711899,2612.9,2612.1,0.7202]
[1724335661371,0.7166,2612.9,2612.1,0.7202]
[1724335661570,0.38266,2612.6,2612.2,0.00573998]
[1724335661772,0.00573998,2612.8,2612.2,0.00573998]
[1724335661966,3.2078,2612.7,2612.2,0.00573998]
[1724335662269,0.3827,2612.3,2612.2,0.00573998]
[1724335662575,0.38269,2612.4,2612.2,0.00573998]
[1724335662868,0.3827,2612.3,2612.2,0.00573998]
[1724335663083,1.1194,2612.3,2612.2,0.00573998]
[1724335663262,4.9474,2612.3,2612.2,0.00573998]
[1724335663459,10.52146,2612.3,2611.6,3.2078]
[1724335663663,10.52146,2612.3,2611.2,0.7136]
[1724335663664,0.38277,2611.9,2611.2,3.9214]
[1724335663863,3.2078,2612.1,2611.3,3.2078]
[1724335664273,0.38277,2611.9,2611.4,0.38283]
[1724335664478,3.2078,2612.1,2611.3,3.59064]
[1724335664768,0.38279,2611.8,2611.3,0.38284]
[1724335665157,2.33071899,2612.2,2611.2,0.7136]
[1724335665158,0.3502,2612.2,2611.2,0.7136]
[1724335665361,0.3502,2612.2,2611.5,0.38282]
[1724335665362,0.38275,2612.0,2611.5,0.38282]
[1724335665572,0.3502,2612.2,2611.2,0.7136]
[1724335665773,2.33071899,2612.2,2611.2,0.7136]
[1724335665974,0.38278,2611.8,2611.3,0.38284]
[1724335666367,3.2078,2611.7,2611.1,4.186]
[1724335666574,0.38281,2611.6,2611.1,0.38287]
[1724335666775,0.3607,2611.6,2611.0,3.2078]
[1724335666971,0.3653,2611.5,2611.0,3.2078]
[1724335667875,9.8268,2612.0,2610.8,0.3742]
[1724335667876,3.2078,2612.0,2611.6,0.3828]
[1724335668065,3.2078,2612.0,2611.1,3.2078]
[1724335668565,0.00573998,2612.1,2611.9,3.2078]
[1724335670277,3.83453998,2612.1,2611.9,3.2078]
[1724335670469,0.00573998,2612.1,2611.9,3.2078]
[1724335670671,0.00573998,2612.1,2611.9,3.59055]
[1724335670875,0.00573998,2612.1,2612.0,0.38275]
[1724335671065,0.00573998,2612.1,2611.9,3.2078]
[1724335671066,0.00573998,2612.1,2611.9,3.59055]
[1724335671671,0.00573998,2612.1,2611.9,3.2078]
[1724335672276,0.00573998,2612.1,2612.0,0.38275]
[1724335672575,0.00573998,2612.1,2612.0,4.21155]
[1724335672871,0.00404012,2612.9,2612.6,0.38265]
[1724335673183,0.38263,2612.8,2612.6,0.00470344]
[1724335673477,0.38666012,2612.9,2612.6,0.00470344]
[1724335673776,0.00404012,2612.9,2612.6,3.59515344]
[1724335673967,0.00404012,2612.9,2612.6,0.38735344]
[1724335674769,0.38665012,2612.9,2612.6,0.00470344]
[1724335674973,0.38263,2612.8,2612.6,0.00470344]
[1724335675369,0.38264,2612.8,2612.6,0.00470344]
[1724335676171,0.00404012,2612.9,2612.6,0.00470344]
[1724335676371,0.00404012,2612.9,2612.6,0.38735344]
[1724335677679,0.00404012,2612.9,2612.7,0.38264]